lending/lending_fUSD_20250626
["ID","MTS","AMOUNT","RATE_DAILY","PERIOD"]
[367980756,1750981870424,-490.0,0.00026024,2]
[367980757,1750981870433,-217.130603,0.00026024,7]
[367980758,1750981870442,-490.0,0.00026024,2]
[367980759,1750981870451,-490.0,0.00026024,2]
[367980760,1750981870460,-506.86,0.00026024,2]
[367980761,1750981870470,-241.57083761,0.00026024,2]
[367980762,1750981870479,-151.0,0.00026024,7]
[367980763,1750981870488,-490.0,0.00026024,2]
[367980764,1750981870497,-490.0,0.00026024,2]
[367980765,1750981870508,-725.67,0.00026024,2]
[367980766,1750981870519,-512.39,0.00026024,2]
[367980767,1750981870528,-294.78653866,0.00026024,2]
[367980768,1750981870537,-663.44,0.00026024,2]
[367980769,1750981870547,-490.0,0.00026024,2]
[367980770,1750981870555,-853.4,0.00026024,2]
[367980771,1750981870565,-741.4,0.00026024,2]
[367980772,1750981870575,-490.0,0.00026024,2]
[367980773,1750981870585,-490.0,0.00026024,2]
[367980774,1750981870595,-665.0,0.00026024,2]
[367980775,1750981870604,-151.0,0.00026024,7]
[367980776,1750981870615,-684.65,0.00026024,2]
[367980777,1750981870624,-507.3,0.00026024,2]
[367980778,1750981870634,-661.32,0.00026024,2]
[367980779,1750981870643,-547.16,0.00026024,2]
[367980780,1750981870653,-695.65,0.00026024,2]
[367980781,1750981870663,-671.27,0.00026024,2]
[367980782,1750981870673,-151.0,0.00026024,7]
[367980783,1750981870682,-566.15,0.00026024,2]
[367980784,1750981870693,-490.0,0.00026024,2]
[367980785,1750981870703,-490.0,0.00026024,2]
[367980786,1750981870713,-490.87,0.00026024,2]
[367980787,1750981870722,-490.0,0.00026024,2]
[367980788,1750981870732,-185.69349049,0.00026024,2]
[367980789,1750981870741,-490.0,0.00026024,2]
[367980790,1750981870751,-695.85,0.00026024,2]
[367980791,1750981870761,-490.0,0.00026024,2]
[367980792,1750981870771,-490.0,0.00026024,2]
[367980793,1750981870781,-490.0,0.00026024,2]
[367980794,1750981870790,-564.7,0.00026024,2]
[367980795,1750981870800,-745.38,0.00026024,2]
[367980796,1750981870809,-151.0,0.00026024,7]
[367980797,1750981870819,-490.0,0.00026024,2]
[367980798,1750981870829,-490.0,0.00026024,2]
[367980799,1750981870838,-490.0,0.00026024,2]
[367980800,1750981870848,-490.0,0.00026024,2]
[367980801,1750981870857,-2555.82,0.00026024,2]
[367980802,1750981870868,-582.27,0.00026024,2]
[367980803,1750981870879,-490.0,0.00026024,2]
[367980804,1750981870888,-3869.58,0.00026024,2]
[367980805,1750981870899,-490.0,0.00026024,2]
[367980806,1750981870909,-490.0,0.00026024,2]
[367980807,1750981870919,-601.54,0.00026024,2]
[367980808,1750981870929,-1000.0,0.00026024,2]
[367980809,1750981870939,-490.0,0.00026024,2]
[367980810,1750981870949,-151.0,0.00026024,7]
[367980811,1750981870958,-572.26,0.00026024,2]
[367980812,1750981870968,-738.95,0.00026024,2]
[367980813,1750981870979,-863.03,0.00026024,2]
[367980814,1750981870988,-555.34,0.00026024,2]
[367980815,1750981870998,-737.45,0.00026024,2]
[367980816,1750981871007,-751.73,0.00026024,2]
[367980817,1750981871017,-533.82,0.00026024,2]
[367980818,1750981871027,-3470.49,0.00026024,2]
[367980819,1750981871036,-1083.02,0.00026024,2]
[367980820,1750981871046,-765.47,0.00026024,2]
[367980821,1750981871056,-787.2,0.00026024,2]
[367980822,1750981871066,-163.19895311,0.00026024,2]
[367980823,1750981871076,-490.0,0.00026024,2]
[367980824,1750981871087,-4125.65,0.00026024,2]
[367980825,1750981871096,-730.07,0.00026024,2]
[367980826,1750981871106,-1877.34,0.00026024,2]
[367980827,1750981871117,-942.34,0.00026024,2]
[367980828,1750981871126,-490.0,0.00026024,2]
[367980829,1750981871136,-490.0,0.00026024,2]
[367980830,1750981871146,-475.86,0.00026024,2]
[367980831,1750981871156,-2527.32,0.00026024,2]
[367980832,1750981871167,-842.75,0.00026024,2]
[367980833,1750981871177,-490.0,0.00026024,2]
[367980834,1750981871188,-9108.86,0.00026024,2]
[367980835,1750981871198,-654.71,0.00026024,2]
[367980836,1750981871207,-647.6,0.00026024,2]
[367980837,1750981871217,-965.11,0.00026024,2]
[367980838,1750981871228,-512.66,0.00026024,2]
[367980839,1750981871240,-1060.94,0.00026024,2]
[367980840,1750981871252,-490.0,0.00026024,2]
[367980841,1750981871263,-1103.1,0.00026024,2]
[367980842,1750981871273,-490.0,0.00026024,2]
[367980843,1750981871284,-574.37227468,0.00026024,2]
[367980844,1750981871294,-506.45,0.00026024,2]
[367980845,1750981871304,-580.4,0.00026024,2]
[367980846,1750981871315,-1202.36,0.00026024,2]
[367980847,1750981871325,-919.31,0.00026024,2]
[367980848,1750981871335,-500.0,0.00026024,2]
[367980849,1750981871345,-558.24,0.00026024,2]
[367980850,1750981871355,-558.24,0.00026024,2]
[367980851,1750981871365,-558.24,0.00026024,2]
[367980852,1750981871375,-558.24,0.00026024,2]
[367980853,1750981871386,-558.24,0.00026024,2]
[367980854,1750981871396,-490.0,0.00026024,2]
[367980855,1750981871407,-529.36,0.00026024,2]
[367980856,1750981871417,-811.31,0.00026024,2]
[367980857,1750981871426,-741.26,0.00026024,2]
[367980858,1750981871437,-1132.34,0.00026024,2]
[367980859,1750981871446,-1244.39,0.00026024,2]
[367980860,1750981871455,-906.32,0.00026024,2]
[367980861,1750981871464,-686.74,0.00026024,2]
[367980862,1750981871474,-367.31566358,0.00026024,2]
[367980863,1750981871483,-1144.27,0.00026024,2]
[367980864,1750981871492,-1735.84,0.00026024,2]
[367980865,1750981871502,-910.86,0.00026024,2]
[367980866,1750981871515,-490.0,0.00026024,2]
[367980867,1750981871525,-8252.82,0.00026024,2]
[367980868,1750981871534,-1505.72,0.00026024,2]
[367980869,1750981871543,-1224.67,0.00026024,2]
[367980870,1750981871554,-490.0,0.00026024,2]
[367980871,1750981871564,-391.55016823,0.00026024,2]
[367980872,1750981871573,-4072.23,0.00026024,2]
[367980873,1750981871585,-490.0,0.00026024,2]
[367980874,1750981871596,-960.44,0.00026024,2]
[367980875,1750981871606,-1283.53,0.00026024,2]
[367980876,1750981871617,-799.81,0.00026024,2]
[367980877,1750981871626,-1227.03,0.00026024,2]
[367980878,1750981871636,-946.91,0.00026024,2]
[367980879,1750981871646,-568.86,0.00026024,2]
[367980880,1750981871656,-3142.44,0.00026024,2]
[367980881,1750981871666,-2105.35,0.00026024,2]
[367980882,1750981871676,-490.0,0.00026024,2]
[367980883,1750981871686,-1069.18,0.00026024,2]
[367980884,1750981871696,-490.0,0.00026024,2]
[367980885,1750981871706,-985.91,0.00026024,2]
[367980886,1750981871715,-842.96,0.00026024,2]
[367980887,1750981871725,-2192.51,0.00026024,2]
[367980888,1750981871735,-827.03,0.00026024,2]
[367980889,1750981871745,-611.52,0.00026024,2]
[367980890,1750981871755,-151.0,0.00026024,7]
[367980891,1750981871767,-1000.82,0.00026024,2]
[367980892,1750981871776,-7903.7,0.00026024,2]
[367980893,1750981871786,-490.0,0.00026024,2]
[367980894,1750981871796,-678.64,0.00026024,2]
[367980895,1750981871806,-151.0,0.00026024,7]
[367980896,1750981871816,-2271.28,0.00026024,2]
[367980897,1750981871826,-756.93,0.00026024,2]
[367980898,1750981871835,-1247.55,0.00026024,2]
[367980899,1750981871845,-10737.27,0.00026024,2]
[367980900,1750981871854,-600.73,0.00026024,2]
[367980901,1750981871865,-490.0,0.00026024,2]
[367980902,1750981871875,-990.88,0.00026024,2]
[367980903,1750981871885,-1024.8,0.00026024,2]
[367980904,1750981871894,-490.0,0.00026024,2]
[367980905,1750981871904,-545.5,0.00026024,2]
[367980906,1750981871914,-968.56,0.00026024,2]
[367980907,1750981871924,-1252.35,0.00026024,2]
[367980908,1750981871935,-490.0,0.00026024,2]
[367980909,1750981871944,-688.92,0.00026024,2]
[367980910,1750981871954,-1251.48,0.00026024,2]
[367980911,1750981871964,-498.19,0.00026024,2]
[367980912,1750981871974,-3710.94,0.00026024,2]
[367980913,1750981871984,-490.0,0.00026024,2]
[367980914,1750981871994,-490.0,0.00026024,2]
[367980915,1750981872003,-490.0,0.00026024,2]
[367980916,1750981872013,-936.48,0.00026024,2]
[367980917,1750981872023,-534.18,0.00026024,2]
[367980918,1750981872034,-3541.76,0.00026024,2]
[367980919,1750981872043,-490.0,0.00026024,2]
[367980920,1750981872053,-1472.57,0.00026024,2]
[367980921,1750981872063,-1042.81,0.00026024,2]
[367980922,1750981872073,-490.0,0.00026024,2]
[367980923,1750981872083,-739.19,0.00026024,2]
[367980924,1750981872093,-860.0,0.00026024,2]
[367980925,1750981872102,-3894.86,0.00026024,2]
[367980926,1750981872112,-831.94,0.00026024,2]
[367980927,1750981872121,-533.81,0.00026024,2]
[367980928,1750981872131,-490.0,0.00026024,2]
[367980929,1750981872142,-783.51,0.00026024,2]
[367980930,1750981872152,-490.0,0.00026024,2]
[367980931,1750981872163,-25675.84,0.00026024,2]
[367980932,1750981872173,-1058.88,0.00026024,2]
[367980933,1750981872183,-1231.52,0.00026024,2]
[367980934,1750981872193,-490.0,0.00026024,2]
[367980935,1750981872203,-490.0,0.00026024,2]
[367980936,1750981872213,-674.72,0.00026024,2]
[367980937,1750981872223,-151.0,0.00026025,7]
[367980938,1750981872232,-151.0,0.00026025,7]
[367980939,1750981872242,-151.0,0.00026025,7]
[367980940,1750981872252,-151.0,0.00026025,7]
[367980941,1750981872261,-151.0,0.00026025,7]
[367980942,1750981872270,-151.0,0.00026025,7]
[367980943,1750981872280,-184.501433,0.00026025,7]
[367980944,1750981872289,-184.501433,0.00026025,7]
[367980945,1750981872300,-771.31,0.00026025,2]
[367980946,1750981872309,-151.0,0.00026025,7]
[367980947,1750981872319,-151.0,0.00026025,7]
[367980948,1750981872328,-635.78,0.00026025,2]
[367980949,1750981872338,-576.75,0.00026025,2]
[367980950,1750981872347,-151.0,0.00026025,7]
[367980951,1750981872356,-754.81,0.00026025,2]
[367980952,1750981872366,-490.0,0.00026025,2]
[367980953,1750981872376,-490.0,0.00026025,2]
[367980954,1750981872386,-581.21,0.00026025,2]
[367980955,1750981872396,-601.42,0.00026025,2]
[367980956,1750981872406,-597.06,0.00026025,2]
[367980957,1750981872416,-151.0,0.00026025,7]
[367980958,1750981872426,-838.760689,0.00026025,7]
[367980959,1750981872436,-838.760689,0.00026025,7]
[367980960,1750981872446,-151.0,0.00026025,7]
[367980961,1750981872455,-151.0,0.00026025,7]
[367980962,1750981872465,-151.0,0.00026025,7]
[367980963,1750981872476,-1000.0,0.00026025,2]
[367980964,1750981872486,-151.0,0.00026025,7]
[367980965,1750981872496,-151.0,0.00026025,7]
[367980966,1750981872508,-151.0,0.00026025,7]
[367980967,1750981872519,-151.0,0.00026026,7]
[367980968,1750981872529,-455.729239,0.00026027,2]
[367980969,1750981872539,-455.729239,0.00026027,2]
[367980970,1750981872548,-554.073594,0.00026027,2]
[367980971,1750981872558,-554.073594,0.00026027,2]
[367980972,1750981872568,-161.013463,0.00026027,2]
[367980973,1750981872578,-161.56,0.00026027,2]
[367980974,1750981872589,-150.0,0.00026029,2]
[367980975,1750981872599,-344.23839665,0.0002604,2]
[367980976,1750981872608,-2006.23560687,0.00026046,2]
[367980977,1750981872618,-150.0,0.00026049,2]
[367980978,1750981872628,-150.0,0.00026063,2]
[367980979,1750981872637,-1000.0,0.00026063,2]
[367980980,1750981872647,-150.0,0.00026085,2]
[367980981,1750981872656,-200.0,0.0002609,2]
[367980982,1750981872666,-158.56013072,0.00026099,2]
[367980983,1750981872677,-502.42,0.000261,2]
[367980984,1750981872687,-455.87,0.00026137,2]
[367980985,1750981872697,-320.967719,0.00026144,2]
[367980986,1750981872707,-215.0738,0.00026144,2]
[367980987,1750981872717,-467.05392016,0.00026144,2]
[367980988,1750981872727,-157.07202264,0.00026158,2]
[367980989,1750981872737,-150.0,0.00026165,2]
[367980990,1750981872747,-150.0,0.00026174,2]
[367980991,1750981872757,-164.12485583,0.00026186,2]
[367980992,1750981872767,-151.0,0.00026191,3]
[367980993,1750981872777,-298.09500888,0.00026191,3]
[367980994,1750981872786,-1201.0,0.00026191,3]
[367980995,1750981872796,-151.0,0.00026191,3]
[367980996,1750981872806,-1201.0,0.00026191,3]
[367980997,1750981872816,-151.0,0.00026191,3]
[367980998,1750981872826,-151.0,0.00026191,3]
[367980999,1750981872836,-1201.0,0.00026191,3]
[367981000,1750981872845,-151.0,0.00026191,3]
[367981001,1750981872855,-152.0,0.00026191,3]
[367981002,1750981872865,-1201.0,0.00026191,3]
[367981003,1750981872875,-151.0,0.00026191,3]
[367981004,1750981872885,-152.0,0.00026191,3]
[367981005,1750981872895,-1201.0,0.00026191,3]
[367981006,1750981872904,-151.0,0.00026191,3]
[367981007,1750981872914,-152.0,0.00026191,3]
[367981008,1750981872924,-1201.0,0.00026191,3]
[367981009,1750981872933,-151.0,0.00026191,3]
[367981010,1750981872944,-152.0,0.00026191,3]
[367981011,1750981872954,-1201.0,0.00026191,3]
[367981012,1750981872963,-152.0,0.00026191,3]
[367981013,1750981872973,-152.0,0.00026191,3]
[367981014,1750981872983,-1201.0,0.00026191,3]
[367981015,1750981872992,-152.0,0.00026191,3]
[367981016,1750981873002,-1201.0,0.00026191,3]
[367981017,1750981873012,-152.0,0.00026191,3]
[367981018,1750981873021,-1171.0,0.00026191,3]
[367981019,1750981873031,-152.0,0.00026191,3]
[367981020,1750981873040,-151.0,0.00026191,3]
[367981021,1750981873050,-152.0,0.00026191,3]
[367981022,1750981873060,-152.0,0.00026191,3]
[367981023,1750981873070,-151.0,0.00026191,3]
[367981024,1750981873079,-152.0,0.00026191,3]
[367981025,1750981873089,-152.0,0.00026191,3]
[367981026,1750981873098,-151.0,0.00026191,3]
[367981027,1750981873108,-152.0,0.00026191,3]
[367981028,1750981873118,-151.0,0.00026191,3]
[367981029,1750981873128,-226.24089684,0.00026191,3]
[367981030,1750981873138,-151.0,0.00026191,3]
[367981031,1750981873148,-151.0,0.00026191,3]
[367981032,1750981873157,-152.60222841,0.00026191,3]
[367981033,1750981873167,-153.0,0.00026191,3]
[367981034,1750981873177,-153.0,0.00026191,3]
[367981035,1750981873187,-153.0,0.00026191,3]
[367981036,1750981873197,-153.0,0.00026191,3]
[367981037,1750981873207,-187.4531796,0.00026191,3]
[367981038,1750981873217,-14107.92380421,0.00026193,2]
[367981039,1750981873226,-356.86607277,0.00026193,2]
[367981040,1750981873236,-4208.91801004,0.00026193,2]
[367981041,1750981873246,-1230.0,0.00026198,2]
[367981042,1750981873255,-490.0,0.00026199,2]
[367981043,1750981873265,-909.77,0.00026199,2]
[367981044,1750981873275,-490.0,0.00026199,2]
[367981045,1750981873285,-593.74,0.00026199,2]
[367981046,1750981873296,-490.0,0.00026199,2]
[367981047,1750981873476,-1364.43,0.00026199,2]
[367981048,1750981873487,-490.0,0.00026199,2]
[367981049,1750981873496,-490.0,0.00026199,2]
[367981050,1750981873506,-490.0,0.00026199,2]
[367981051,1750981873518,-1398.45,0.00026199,2]
[367981052,1750981873527,-547.45,0.00026199,2]
[367981053,1750981873536,-594.25,0.00026199,2]
[367981054,1750981873546,-2361.81,0.00026199,2]
[367981055,1750981873557,-834.98,0.00026199,2]
[367981056,1750981873567,-805.94,0.00026199,2]
[367981057,1750981873576,-678.06,0.00026199,2]
[367981058,1750981873588,-1260.13,0.00026199,2]
[367981059,1750981873598,-10812.85,0.00026199,2]
[367981060,1750981873607,-1003.46,0.00026199,2]
[367981061,1750981873617,-1780.79,0.00026199,2]
[367981062,1750981873626,-1855.19,0.00026199,2]
[367981063,1750981873635,-1090.21,0.00026199,2]
[367981064,1750981873644,-1121.66,0.00026199,2]
[367981065,1750981873654,-890.65,0.00026199,2]
[367981066,1750981873663,-1432.14,0.00026199,2]
[367981067,1750981873673,-736.4,0.00026199,2]
[367981068,1750981873682,-819.82,0.00026199,2]
[367981069,1750981873692,-1892.69,0.00026199,2]
[367981070,1750981873701,-3457.08,0.00026199,2]
[367981071,1750981873710,-1096.45,0.00026199,2]
[367981072,1750981873719,-490.0,0.00026199,2]
[367981073,1750981873729,-783.8,0.00026199,2]
[367981074,1750981873738,-1000.0,0.00026206,2]
[367981075,1750981873747,-1201.0,0.0002621,3]
[367981076,1750981873757,-1201.0,0.0002621,3]
[367981077,1750981873766,-604.5523,0.0002621,3]
[367981078,1750981873776,-537.91,0.00026237,2]
[367981079,1750981873786,-490.0,0.00026237,2]
[367981080,1750981873795,-531.99,0.00026237,2]
[367981081,1750981873804,-490.0,0.00026237,2]
[367981082,1750981873813,-490.0,0.00026237,2]
[367981083,1750981873822,-1539.87,0.00026237,2]
[367981084,1750981873832,-629.99,0.00026237,2]
[367981085,1750981873841,-490.0,0.00026237,2]
[367981086,1750981873850,-490.0,0.00026237,2]
[367981087,1750981873860,-2071.16,0.00026237,2]
[367981088,1750981873871,-490.0,0.00026237,2]
[367981089,1750981873880,-1655.57,0.00026237,2]
[367981090,1750981873890,-490.0,0.00026237,2]
[367981091,1750981873900,-490.0,0.00026237,2]
[367981092,1750981873909,-1422.54,0.00026237,2]
[367981093,1750981873920,-490.0,0.00026237,2]
[367981094,1750981873930,-490.0,0.00026237,2]
[367981095,1750981873941,-2613.36,0.00026237,2]
[367981096,1750981873950,-490.0,0.00026237,2]
[367981097,1750981873960,-1341.409878,0.00026237,2]
[367981098,1750981873969,-490.0,0.00026237,2]
[367981099,1750981873978,-490.0,0.00026237,2]
[367981100,1750981873988,-490.0,0.00026237,2]
[367981101,1750981873997,-526.39,0.00026237,2]
[367981102,1750981874006,-309.0,0.00026248,2]
[367981103,1750981874017,-2006.23560687,0.00026259,2]
[367981104,1750981874028,-350.0,0.00026267,2]
[367981105,1750981874038,-165.9056836,0.00026273,2]
[367981106,1750981874049,-500.0,0.00026273,2]
[367981107,1750981874058,-500.0,0.00026273,2]
[367981108,1750981874068,-2100.0,0.00026288,7]
[367981109,1750981874078,-1100.0,0.00026288,7]
[367981110,1750981874087,-500.0,0.00026288,7]
[367981111,1750981874097,-237.3,0.00026289,2]
[367981112,1750981874106,-798.87,0.00026291,2]
[367981113,1750981874116,-500.0,0.00026292,2]
[367981114,1750981874125,-558.24,0.00026292,2]
[367981115,1750981874134,-151.0,0.00026293,7]
[367981116,1750981874143,-365.83337939,0.00026293,2]
[367981117,1750981874152,-4972.2286389,0.00026293,2]
[367981118,1750981874162,-419.0789943,0.00026293,2]
[367981119,1750981874171,-8514.5020783,0.00026293,2]
[367981120,1750981874181,-10596.2866343,0.00026293,2]
[367981121,1750981874190,-152.76684,0.00026293,7]
[367981122,1750981874200,-240.05616888,0.00026293,2]
[367981123,1750981874209,-152.76684,0.00026293,7]
[367981124,1750981874218,-10548.2195317,0.00026293,2]
[367981125,1750981874227,-254.5175028,0.00026293,2]
[367981126,1750981874236,-18390.1687508,0.00026293,2]
[367981127,1750981874246,-890.920391,0.00026293,2]
[367981128,1750981874255,-552.419008,0.00026293,2]
[367981129,1750981874264,-4916.28866,0.00026293,2]
[367981130,1750981874273,-126203.7568278,0.00026293,2]
[367981131,1750981874282,-151.0,0.00026293,7]
[367981132,1750981874291,-490.0,0.00026296,2]
[367981133,1750981874301,-490.0,0.00026296,2]
[367981134,1750981874310,-490.0,0.00026296,2]
[367981135,1750981874319,-490.0,0.00026296,2]
[367981136,1750981874329,-498.77336172,0.00026296,2]
[367981137,1750981874339,-490.0,0.00026296,2]
[367981138,1750981874348,-490.0,0.00026296,2]
[367981139,1750981874358,-2709.65,0.00026297,2]
[367981140,1750981874368,-490.0,0.00026297,2]
[367981141,1750981874377,-654.62,0.00026297,2]
[367981142,1750981874387,-490.0,0.00026297,2]
[367981143,1750981874397,-490.0,0.00026297,2]
[367981144,1750981874406,-604.75,0.00026297,2]
[367981145,1750981874415,-3266.02,0.00026297,2]
[367981146,1750981874424,-519.34,0.00026297,2]
[367981147,1750981874434,-773.87,0.00026297,2]
[367981148,1750981874443,-656.7,0.00026297,2]
[367981149,1750981874453,-689.0,0.00026297,2]
[367981150,1750981874463,-760.25,0.00026297,2]
[367981151,1750981874474,-490.0,0.00026297,2]
[367981152,1750981874485,-3788.54,0.00026297,2]
[367981153,1750981874494,-490.0,0.00026297,2]
[367981154,1750981874505,-530.99,0.00026297,2]
[367981155,1750981874519,-819.73,0.00026297,2]
[367981156,1750981874530,-2324.73,0.00026297,2]
[367981157,1750981874540,-955.49,0.00026297,2]
[367981158,1750981874551,-490.0,0.00026297,2]
[367981159,1750981874561,-490.0,0.00026297,2]
[367981160,1750981874570,-1079.37,0.00026297,2]
[367981161,1750981874579,-490.0,0.00026298,2]
[367981162,1750981874589,-490.0,0.00026298,2]
[367981163,1750981874599,-490.0,0.00026298,2]
[367981164,1750981874609,-490.0,0.00026298,2]
[367981165,1750981874619,-490.0,0.00026298,2]
[367981166,1750981874629,-490.0,0.00026298,2]
[367981167,1750981874639,-151.0,0.00026298,7]
[367981168,1750981874648,-490.0,0.00026298,2]
[367981169,1750981874658,-511.39,0.00026298,2]
[367981170,1750981874667,-556.26,0.00026298,2]
[367981171,1750981874678,-490.0,0.00026298,2]
[367981172,1750981874687,-490.0,0.00026298,2]
[367981173,1750981874697,-184.501433,0.00026298,7]
[367981174,1750981874707,-184.501433,0.00026298,7]
[367981175,1750981874716,-490.0,0.00026298,2]
[367981176,1750981874726,-492.52,0.00026298,2]
[367981177,1750981874736,-642.73,0.00026298,2]
[367981178,1750981874746,-520.17,0.00026298,2]
[367981179,1750981874755,-151.0,0.00026298,7]
[367981180,1750981874765,-490.0,0.00026298,2]
[367981181,1750981874774,-490.0,0.00026298,2]
[367981182,1750981874784,-490.0,0.00026298,2]
[367981183,1750981874793,-490.0,0.00026298,2]
[367981184,1750981874802,-573.77,0.00026298,2]
[367981185,1750981874812,-609.51,0.00026298,2]
[367981186,1750981874821,-545.37,0.00026298,2]
[367981187,1750981874830,-151.0,0.00026298,7]
[367981188,1750981874840,-742.51,0.00026298,2]
[367981189,1750981874850,-490.0,0.00026298,2]
[367981190,1750981874859,-512.47,0.00026298,2]
[367981191,1750981874870,-490.0,0.00026298,2]
[367981192,1750981874880,-490.0,0.00026298,2]
[367981193,1750981874889,-552.01,0.00026298,2]
[367981194,1750981874899,-676.26,0.00026298,2]
[367981195,1750981874909,-587.1,0.00026298,2]
[367981196,1750981874919,-490.0,0.00026298,2]
[367981197,1750981874928,-543.74,0.00026298,2]
[367981198,1750981874938,-584.2,0.00026298,2]
[367981199,1750981874948,-490.0,0.00026298,2]
[367981200,1750981874958,-490.0,0.00026298,2]
[367981201,1750981874967,-506.86,0.00026298,2]
[367981202,1750981874977,-490.0,0.00026298,2]
[367981203,1750981874986,-608.67936489,0.00026298,2]
[367981204,1750981874996,-725.67,0.00026298,2]
[367981205,1750981875005,-512.39,0.00026298,2]
[367981206,1750981875014,-663.44,0.00026298,2]
[367981207,1750981875023,-490.0,0.00026298,2]
[367981208,1750981875032,-853.4,0.00026298,2]
[367981209,1750981875042,-741.4,0.00026298,2]
[367981210,1750981875052,-490.0,0.00026298,2]
[367981211,1750981875061,-490.0,0.00026298,2]
[367981212,1750981875071,-665.0,0.00026298,2]
[367981213,1750981875080,-684.65,0.00026298,2]
[367981214,1750981875090,-507.3,0.00026298,2]
[367981215,1750981875101,-661.32,0.00026298,2]
[367981216,1750981875112,-547.16,0.00026298,2]
[367981217,1750981875121,-695.65,0.00026298,2]
[367981218,1750981875131,-671.27,0.00026298,2]
[367981219,1750981875141,-566.15,0.00026298,2]
[367981220,1750981875151,-490.0,0.00026298,2]
[367981221,1750981875160,-490.0,0.00026298,2]
[367981222,1750981875169,-490.87,0.00026298,2]
[367981223,1750981875178,-490.0,0.00026298,2]
[367981224,1750981875188,-490.0,0.00026298,2]
[367981225,1750981875197,-695.85,0.00026298,2]
[367981226,1750981875207,-490.0,0.00026298,2]
[367981227,1750981875216,-490.0,0.00026298,2]
[367981228,1750981875225,-490.0,0.00026298,2]
[367981229,1750981875235,-564.7,0.00026298,2]
[367981230,1750981875245,-745.38,0.00026298,2]
[367981231,1750981875254,-490.0,0.00026298,2]
[367981232,1750981875264,-490.0,0.00026298,2]
[367981233,1750981875273,-490.0,0.00026298,2]
[367981234,1750981875282,-490.0,0.00026298,2]
[367981235,1750981875291,-2555.82,0.00026298,2]
[367981236,1750981875301,-582.27,0.00026298,2]
[367981237,1750981875310,-490.0,0.00026298,2]
[367981238,1750981875320,-2483.65832311,0.00026298,2]
[367981239,1750981875644,-1385.92167689,0.00026298,2]
[367981240,1750981875654,-490.0,0.00026298,2]
[367981241,1750981875664,-490.0,0.00026298,2]
[367981242,1750981875674,-601.54,0.00026298,2]
[367981243,1750981875683,-1000.0,0.00026298,2]
[367981244,1750981875693,-490.0,0.00026298,2]
[367981245,1750981875702,-572.26,0.00026298,2]
[367981246,1750981875712,-738.95,0.00026298,2]
[367981247,1750981875721,-863.03,0.00026298,2]
[367981248,1750981875730,-555.34,0.00026298,2]
[367981249,1750981875739,-737.45,0.00026298,2]
[367981250,1750981875749,-751.73,0.00026298,2]
[367981251,1750981875758,-533.82,0.00026298,2]
[367981252,1750981875767,-286.67152127,0.00026298,2]
[367981254,1750982000450,500.0,0.0002737,120]
[367981255,1750982011126,500.0,0.0002737,120]
[367981256,1750982155129,301.22153198,0.00027397,120]